Cogmind - Beta 13 X1 @@@ ROGUE MODE // 2023.08.02 @ 23:44:48 Player: Exp. Geonium Core Result: Destroyed by S-10 Pest with Light Assault Rifle Performance ------------- Evolutions (0) 0 Regions Visited (2) 400 Robots Destroyed (12) 60 Value Destroyed (353) 353 Prototype IDs (10) 200 Alien Tech Used (0) 0 Bonus (0) 0 TOTAL SCORE: 1013 Bonus ------- None Cogmind --------- Core Integrity 0/250 Matter 300/300 Energy 74/200 System Corruption 0% Temperature Cool (0) Movement Treading (160) Location -10/Subcaves Parts ------- > --- POWER (1) -------- Subdweller Power Source > --- PROPULSION (2) --- Light Treads Spiked Treads > --- UTILITY (2) ------ Scrap Shield > --- WEAPON (2) ------- Powered Cannon > --- INVENTORY (5) ---- Light Ion Engine Light Treads Makeshift Hacking Suite Grenade Launcher Piercing Trap Peak State ------------ > --- POWER ------------ Subdweller Power Source Subdweller Power Source > --- PROPULSION ------- Light Treads Spiked Treads > --- UTILITY ---------- Scrap Shield > --- WEAPON ----------- Powered Cannon > --- INVENTORY -------- Light Ion Engine Light Treads Makeshift Hacking Suite Grenade Launcher Piercing Trap [Rating: 25] Favorites ----------- Power Ion Engine Engine Ion Engine Propulsion Aluminum Leg Treads Light Treads Leg Aluminum Leg Wheel Subdweller Monowheel Utility Small Storage Unit Device Structural Scanner Storage Small Storage Unit Protection Scrap Shield Weapon Assault Rifle Energy Gun EM Pulse Gun Energy Cannon Powered Cannon Ballistic Gun Assault Rifle Launcher Grenade Launcher Build | -11 -10 -10 ------- Run | Jun Mat Sub Slots Evolved . | . . . Power . | . . . Propulsion . | . . . Utility . | . . . Weapon . | . . . Parts Attached 20 | . 2 18 Power 5 | . . 5 Engine 5 | . . 5 Core . | . . . Reactor . | . . . Propulsion 4 | . . 4 Treads 3 | . . 3 Leg . | . . . Wheel 1 | . . 1 Hover . | . . . Flight . | . . . Utility 2 | . 1 1 Device 1 | . 1 . Storage . | . . . Processor . | . . . Hackware . | . . . Protection 1 | . . 1 Artifact . | . . . Weapon 9 | . 1 8 Energy Gun 4 | . . 4 Energy Cannon 1 | . . 1 Ballistic Gun 2 | . . 2 Ballistic Cannon . | . . . Launcher 2 | . 1 1 Special Weapon . | . . . Impact Weapon . | . . . Slashing Weapon . | . . . Piercing Weapon . | . . . Special Melee Weapon . | . . . Unidentified Prototypes . | . . . Parts Lost 7 | . . 7 Power 2 | . . 2 Propulsion 1 | . . 1 Utility . | . . . Weapon 4 | . . 4 Highest Loss Streak 2 | . . 2 To Critical Strikes . | . . . Average Slot Usage (%) 88 | . 99 86 Engine 13 | . 14 13 Treads 11 | . . 14 Leg 13 | . 28 11 Wheel 1 | . . 1 Device 9 | . 13 8 Storage 9 | . 14 8 Protection 3 | . . 4 Energy Gun 6 | . . 7 Energy Cannon 2 | . . 3 Ballistic Gun 9 | . 14 9 Launcher 4 | . 13 2 Naked Turns . | . . . Heaviest Build 35 | 14 16 35 Greatest Support 40 | 20 20 40 Greatest Overweight (x) . | . . . Average Overweight (x) . | . . . Largest Inventory Capacity 8 | . 8 8 Average Capacity 7 | . 8 6 Most Carried 8 | . 7 8 Average Carried 6 | . 6 5 Final Capacity 8 | 8 8 5 Final Carried 7 | 6 7 5 Class Distribution -------------------- 92% | Mutant 7% | Derelict-Mutant Dominant Class ---------------- Mutant | -10/Materials Mutant | -10/Subcaves Resources | -11 -10 -10 ----------- Run | Jun Mat Sub Matter Collected 539 | 200 . 339 Remotely . | . . . Salvage Created 358 | . 92 266 Parts 23 | . 8 15 Haulers Intercepted . | . . . Recyclers Shooed . | . . . Parts Field Recycled . | . . . Retrieved Matter . | . . . Parts Self-Destructed 5 | . . 5 Prevented . | . . . Kills | -11 -10 -10 ------- Run | Jun Mat Sub Combat Hostiles Destroyed 10 | . 4 6 Guns 5 | . . 5 Cannons 1 | . . 1 AOE 4 | . 4 . Classes Destroyed 6 | . 4 2 Worker 1 | . 1 . Watcher 1 | . 1 . Swarmer 3 | . 2 1 Grunt 2 | . 2 . Sentry 1 | . . 1 Subdweller 4 | . . 4 Best Kill Streak 4 | . 4 2 Combat Bots Only 2 | . 2 2 Max Kills in Single Turn 1 | . 1 1 Gunslinging . | . . . Exploded 1 | . 1 . Melee . | . . . Uniques/NPCs Destroyed . | . . . Combat | -11 -10 -10 -------- Run | Jun Mat Sub Damage Taken 1298 | . 222 1076 Core 250 | . 71 179 Absorbed by Shields . | . . . Core Remaining (%) 100 | 100 . . Volleys Fired 60 | . 9 51 Largest 2 | . 1 2 Hottest 90 | . 30 90 Shots Fired 88 | . 9 79 Gun 71 | . . 71 Cannon 7 | . . 7 Launcher 10 | . 9 1 Special . | . . . Kinetic 25 | . . 25 Thermal 25 | . . 25 Explosive 10 | . 9 1 Electromagnetic 28 | . . 28 Robot Hit Streak 17 | . 3 17 Robot Miss Streak 3 | . 2 3 Penetration Max . | . . . Secondary Targets . | . . . Shots Hit Robots 63 | . 5 58 Core Hits 22 | . 10 12 Critical Kills . | . . . Critical Parts Destroyed . | . . . Critical Strikes . | . . . Melee Attacks . | . . . Impact . | . . . Slashing . | . . . Piercing . | . . . Sneak Attacks . | . . . Combat Hostiles . | . . . Follow-up Attacks . | . . . Damage Inflicted 824 | . 407 417 Guns 363 | . . 363 Cannons 54 | . . 54 Explosions 407 | . 407 . Melee . | . . . Ramming . | . . . Kinetic 222 | . . 222 Thermal 76 | . . 76 Explosive 407 | . 407 . Electromagnetic 119 | . . 119 Impact . | . . . Slashing . | . . . Piercing . | . . . Highest Corruption . | . . . Average Corruption . | . . . Corruption Purged . | . . . Corruption Blocked . | . . . Overload Shots . | . . . Overflow Damage 35 | . 21 14 Projectiles 14 | . . 14 Explosions 21 | . 21 . Melee . | . . . Knockbacks . | . . . Impact . | . . . Kinetic . | . . . Secondary . | . . . Self-Inflicted Damage 85 | . 85 . Shots 3 | . 3 . Rammed . | . . . Targets Rammed . | . . . Kicked . | . . . Crushed . | . . . Highest Temperature 5 | . 4 5 Average Temperature 2 | . 4 1 Received Heat Transfer 312 | . 18 294 Siege Activations . | . . . Robots Corrupted . | . . . Combat Hostiles . | . . . Parts Fried . | . . . Impact Corruptions . | . . . Robots Melted . | . . . Combat Hostiles . | . . . Parts Melted . | . . . Heat Transferred 50 | . . 50 Parts Sabotaged . | . . . Parts Stolen . | . . . Parts Stripped . | . . . Power Chain Reactions . | . . . Missiles Intercepted . | . . . Alert | -11 -10 -10 ------- Run | Jun Mat Sub Peak Influence 229 | . 229 . Initial . | . . . Average 170 | . 170 . Maximum Alert Level 1 | . 1 . Low Security (%) 29 | . 29 . Level 1 70 | . 70 . Level 2 . | . . . Level 3 . | . . . Level 4 . | . . . Level 5 . | . . . High Security . | . . . Max Security . | . . . Squads Dispatched 2 | . 2 . Investigation . | . . . Extermination . | . . . Reinforcement 2 | . 2 . Assault . | . . . Garrison . | . . . Intercept . | . . . Searches Triggered . | . . . Construction Impeded . | . . . Haulers Reinforced . | . . . Active Scanning Responses . | . . . Cargo Convoy Interrupts . | . . . Stealth | -11 -10 -10 --------- Run | Jun Mat Sub Distress Signals . | . . . Communications Jammed . | . . . Distress Signals . | . . . Times Spotted 31 | . 11 20 Peak Tracking Total 5 | . 4 5 Tactical Retreats 1 | . . 1 Traps | -11 -10 -10 ------- Run | Jun Mat Sub Traps Triggered 3 | . . 3 Indirectly . | . . . Trap Hack Attempts . | . . . Triggered . | . . . Disarmed . | . . . Reprogrammed . | . . . Reused . | . . . Traps Extracted . | . . . Installed . | . . . Triggered . | . . . Most Traps Carried 1 | . . 1 Machines | -11 -10 -10 ---------- Run | Jun Mat Sub Machines Disabled 3 | . 2 1 Max in Single Turn 1 | . 1 1 Machines Repaired . | . . . Machines Sabotaged . | . . . Overloaded Fab Kills . | . . . Hacking | -11 -10 -10 --------- Run | Jun Mat Sub Machines Accessed 2 | . . 2 Terminals . | . . . Fabricators . | . . . Repair Stations . | . . . Recycling Units . | . . . Scanalyzers . | . . . Garrison Access . | . . . Total Hacks 3 | . . 3 Successful 3 | . . 3 Failed . | . . . Catastrophic . | . . . Database Lockouts . | . . . Manual 5 | . . 5 Terminals . | . . . Fabricators . | . . . Repair Stations . | . . . Recycling Units . | . . . Scanalyzers . | . . . Garrison Access . | . . . Terminal Hacks 3 | . . 3 Record 2 | . . 2 Derelict Proto ID Bank 1 | . . 1 Fabricator Hacks . | . . . Repair Station Hacks . | . . . Recycling Unit Hacks . | . . . Scanalyzer . | . . . Garrison Access Hacks . | . . . Unauthorized Hacks . | . . . Terminals . | . . . Fabricators . | . . . Repair Stations . | . . . Recycling Units . | . . . Scanalyzers . | . . . Garrison Access . | . . . Data Cores Recovered . | . . . Used . | . . . Hacking Detections . | . . . Full Trace Events . | . . . Feedback Events . | . . . Feedback Blocked . | . . . Robot Schematics Acquired . | . . . Robots Built . | . . . Authchips . | . . . Time . | . . . Total Robot Build Rating . | . . . Part Schematics Acquired . | . . . Parts Built . | . . . Authchips . | . . . Time . | . . . Total Part Build Rating . | . . . Parts Repaired . | . . . Time . | . . . Parts Recycled . | . . . Recycled Matter . | . . . Retrieved Matter . | . . . Retrieved Components . | . . . Parts Scanalyzed . | . . . Part Schematics Acquired . | . . . Parts Damaged . | . . . Bothacking | -11 -10 -10 ------------ Run | Jun Mat Sub Used RIF Installer . | . . . Robots Hacked . | . . . Non-combat . | . . . Combat . | . . . Robot Hacks Applied . | . . . Relay Couplers Released . | . . . Fabnet Peak Effective % . | . . . Robots Rewired . | . . . Allies Hacked . | . . . Hacks Repelled . | . . . Allies | -11 -10 -10 -------- Run | Jun Mat Sub Total Allies . | . . . Largest Group . | . . . Highest-Rated Group . | . . . Highest-Rated Ally . | . . . Total Orders . | . . . Ally Attacks . | . . . Total Damage . | . . . Kills . | . . . Allies Corrupted . | . . . Allies Melted . | . . . Intel | -11 -10 -10 ------- Run | Jun Mat Sub Robot Analysis Total . | . . . Derelict Logs Recovered 2 | . . 2 Drone Launches . | . . . Drone Recoveries . | . . . Exploration | -11 -10 -10 ------------- Run | Jun Mat Sub Turns Passed 2550 | . 433 2117 Spaces Moved 1662 | 1 261 1400 Core . | . . . Treads 648 | . . 648 Legs 1014 | 1 261 752 Wheels . | . . . Hover . | . . . Flight . | . . . Fastest Speed 120 | 120 120 120 Average Speed 135 | 120 120 138 Slowest Speed 160 | 120 120 160 Overloaded Moves . | . . . Propulsion Burnouts . | . . . Robots Hopped . | . . . Cave-ins Triggered . | . . . Exploration Rate (%) 41 | 2 60 63 Regions Visited 2 Branch Regions 1 Pre-discovered Areas . | . . . Known Exits Taken . | . . . Unknown Exits Taken 2 | 1 1 . Scrap Searched 13 | . . 13 Spaces Dug 24 | . 16 8 Terrain Destroyed 70 | . 58 12 Melee . | . . . Projectile 4 | . . 4 AOE 66 | . 58 8 Terrain Rammed . | . . . Walls Destroyed . | . . . Machines Disabled . | . . . Actions | -11 -10 -10 --------- Run | Jun Mat Sub Total 1869 | . 371 1498 Wait 114 | . 99 15 Move 1660 | . 260 1400 Hop . | . . . Pick Up 4 | . 1 3 Fast Attach 8 | . 1 7 Attach 5 | . . 5 Detach . | . . . Swap 7 | . 1 6 Drop 10 | . . 10 Fire 60 | . 9 51 Melee . | . . . Ram . | . . . Kick . | . . . Crush . | . . . Escape Stasis . | . . . Rewire 1 | . . 1 Trap . | . . . Miscellaneous . | . . . Route ------- -11/Junkyard -10/Materials (discovered 5 exits: [*Mat x3] / [*Min] / *Sub) -10/Subcaves (discovered 3 exits: [*Mat x2] / [*Rec]) History --------- Turn | Location | Event 1 | -11/Junkyard | Discovered new exit (range 0) 1 | -11/Junkyard | Entered Materials 53 | -10/Materials | Discovered new exit (range 7) 180 | -10/Materials | Discovered new exit (range 16) 253 | -10/Materials | Discovered new exit (range 15) 289 | -10/Materials | Discovered new exit (range 10) 316 | -10/Materials | Build established: Mutant 395 | -10/Materials | Discovered new exit (range 8) 434 | -10/Materials | Entered Subcaves 461 | -10/Subcaves | Visited Clippyterm 464 | -10/Subcaves | Learned Factory garrison access intel 492 | -10/Subcaves | Learned Materials stockpile data 848 | -10/Subcaves | Discovered new exit (range 5) 1035 | -10/Subcaves | Discovered new exit (range 6) 1059 | -10/Subcaves | Learned Materials emergency access door positions 1139 | -10/Subcaves | Core integrity fell below 50% 1705 | -10/Subcaves | Disturbed a concealed Subdweller 1730 | -10/Subcaves | Core integrity fell below 20% 1943 | -10/Subcaves | Visited 4L-MR0's lab 1965 | -10/Subcaves | Found Powered Cannon 1966 | -10/Subcaves | Attached Powered Cannon, gained temporary slot: Power 2535 | -10/Subcaves | Discovered new exit (range 16) 2551 | -10/Subcaves | Destroyed by S-10 Pest with Light Assault Rifle Last Messages --------------- 01960_ 4L-MR0 mumbles: "I'm surprised some of them are even willing to come in here given their fear of my usual visitors." 01960_ Dropped Mak. Shrapnel Gun. 01961_ Dropped Sub. Machine Gun. 01965_ Acquired Powered Cannon. 01966_ Core temporarily expanded with Power slot. 01985_ Acquired 9 matter. 01988_ Acquired 3 matter. 02094_ Acquired Sub. Power Source. 02096_ Acquired 10 matter. 02414_ Sub. Power Source shoots sparks and powers down. 02443_ Dropped Broken Sub. Power Source. 02444_ Temporary Power slot lost. 02444_ Acquired 10 matter. 02535_ EXIT=FOUND 02539_ S-10 Pest destroyed. 02545_ Destroyed Lgt. Ion Engine. 02545_ S-10 Pest destroyed. 02546_ Lgt. Ion Engine fries itself beyond repair. 02551_ Flight Unit fries itself beyond repair. Map ----- +----------------------------------------------------+ | ????????????????????????????????###### ### | | ????????????????????????????????##### ### | | ????????????????????????????????## " "# ## | | ????????????????????????????????### # | | ????????????????????????????????#### " &# | | ?????????????????????????????????#### &" # # | | ??????????????????????????????????#### ""##### | | ???????????????????????????????????#### ####### | | ????????????????????????????????????###########??? | | ?????????????????????????????????????########????? | | ?????????????????????????????????????????????????? | | ?????????????????????????????????????????????????? | | ?????????????????????????????????????????????????? | | ?????????????????????????????????????????????????? | | ????????????????????????????#?<##????????????????? | | ???????????????????????????""" """"#?????????????? | | ??????????????????????????? " " "#?????????????? | | ??????????????????#######?? "#?????????????? | | ???????????? ??####### ??? #?????????????? | | ???????????? ## ??? #?????????????? | | ???????????? ?" [ ???????????????? | | ????????????? ####s #?????######?????? | | ???????????????? ### #??##########????? | | ?????????????????## # #?###### ####???? | | ?????????????????## # ##### ####??? | | ?????????????????### @ [%##### ###??? | | ??????????????????## s ## ##### | | ??????????????????## ##### | | ??????????????????## ## #### | | ???????????????????# ?## #;# | | ???????????????????#??## ## ;### | | ??????????????????????## #### ###### | | ??????????????????????### #### ###### | | ????????????????????????## #?######;##??### ## | | ?????????????????????????###?#########??########## | | ?????????????????????????????????????????######### | | ???????????????????????????????????????????###### | | ???????????????????????????????????????????### | | ???????????????????????????????????????????## | | ???????????????????????????????????????????## | | ???????????????????????????????????????????### | | ???????????????????????????????????????????#### | | ????????????????????????????????????????????#### | | ???????????????????????????????????????????####### | | ???????????????????????????????????????????### ### | | ???????????????????????????????????????????## ## | | ???????????????????????????????????????????## # | | ???????????????????????????????##########??## | | ??????????????????????????????############### | | ?????????????????????????????#### ### ###### | +----------------------------------------------------+ Best States ------------- Heat Dissipation 25 Energy Generation 20 Energy Capacity 250 Matter Stores 300 Matter Capacity 300 Sight Range 16 Terrain Scan Density 10 Armor Coverage 800 Evasion (%) 55 Recoil Reduction 2 Item Schematics ----------------- None Robot Schematics ------------------ None Fabricated ------------ Nothing Alien Tech Used ----------------- None Achievements -------------- None Challenges ------------ None Game ------ Seed ThermalGravityNukerbomber Manual? 0 Play Time 00:13:49 Cumulative 443.5 hours Start 2023.08.02 @ 23:32:20 End 2023.08.02 @ 23:44:48 Sessions 1 Manual Loads 0 Difficulty Rogue Special Mode None Game No. 493 Rogue 493 Adventurer 0 Explorer 0 Win Type - Total 12 Types 8/0/3/1/0/0/0/0/0 Lore% 80 Gallery% 89 Achievement% 80 Wizard Run 0 Options --------- ASCII 0 Keyboard 0 Movement Mouse Keybinds 0 Fullscreen 1 Font 18/Terminus Map View 76x50 Tactical HUD 1 Map Filters NONE Filters NONE Steam 1 RUN: 763a8312-863b-4147-87ec-b89031671349